bitfinex/quotes_SOLUSD_20250508
["timestamp","ask_amount","ask_price","bid_price","bid_amount"]
[1746717191182,44.44511025,158.07,158.0,89.12907895]
[1746717191183,50.77153123,158.07,158.0,89.12907895]
[1746717191503,24.54511025,158.05,157.98,82.8]
[1746717191683,18.64964886,158.06,157.98,82.8]
[1746717191684,24.54511025,158.04,157.98,82.8]
[1746717191886,24.54511025,158.04,157.98,108.8]
[1746717192182,18.64964886,158.06,157.98,82.8]
[1746717192386,24.54511025,158.05,157.98,82.8]
[1746717192605,18.64964886,158.04,157.98,82.8]
[1746717192803,24.54511025,158.03,157.98,82.8]
[1746717193106,24.54511025,158.03,157.97,26.0]
[1746717193309,24.54511025,158.03,157.96,89.13035242]
[1746717193608,24.54511025,158.03,157.96,115.13035242]
[1746717194485,18.64964886,158.04,157.96,115.13035242]
[1746717194690,43.19475911,158.04,157.96,115.13035242]
[1746717195201,19.9,158.07,157.96,134.17166918]
[1746717195395,18.64964886,158.06,157.96,134.17166918]
[1746717195593,19.9,158.07,157.99,26.0]
[1746717195895,19.9,158.07,157.99,27.6119]
[1746717196508,19.9,158.07,158.0,6.32911392]
[1746717196705,19.9,158.07,158.0,104.95189873]
[1746717196915,44.44511025,158.07,158.0,104.95189873]
[1746717197122,24.54511025,158.05,158.0,89.12911392]
[1746717197292,19.9,158.07,158.0,89.12911392]
[1746717197602,24.54511025,158.06,158.0,89.12911392]
[1746717197911,19.9,158.07,158.0,89.12911392]
[1746717198318,19.9,158.07,158.0,104.95189873]
[1746717199807,44.44511025,158.07,158.0,104.95189873]
[1746717200106,50.77150891,158.07,158.0,89.12911392]
[1746717200311,24.54511025,158.06,158.0,89.12911392]
[1746717200611,30.87186894,158.06,158.0,89.12911392]
[1746717201299,24.54511025,158.05,158.0,89.12911392]
[1746717201817,24.54511025,158.04,158.0,82.8]
[1746717202113,24.54511025,158.02,157.96,82.8]
[1746717202303,24.54511025,158.02,157.97,6.33016044]
[1746717202610,19.86,158.01,157.97,6.33016044]
[1746717202785,24.54511025,158.0,157.92,82.8]
[1746717202989,19.86,158.01,157.94,26.0]
[1746717202990,26.18885579,158.01,157.94,26.0]
[1746717203293,50.73396604,158.01,157.94,26.0]
[1746717203487,24.54511025,158.0,157.94,26.0]
[1746717204110,24.54511025,157.96,157.91,15.83107944]
[1746717204303,24.54511025,157.97,157.91,15.83107944]
[1746717204502,18.64964886,158.0,157.91,15.83107944]
[1746717204819,24.54511025,157.99,157.92,32.33232016]
[1746717205306,24.54511025,157.98,157.92,32.33232016]
[1746717205813,1.6397,158.03,157.92,48.16312056]
[1746717206021,1.6397,158.03,157.92,54.33082056]
[1746717206888,156.46,158.04,157.96,26.0]
[1746717207102,19.86,158.04,157.97,6.33031588]
[1746717207515,19.86,158.04,157.97,22.15610558]
[1746717207688,43.19475911,158.03,157.97,6.33031588]
[1746717207889,24.54511025,158.02,157.97,6.33031588]
[1746717208106,19.86,158.04,157.97,6.33031588]
[1746717208297,19.86,158.04,157.97,32.33031588]
[1746717209120,19.86,158.04,157.97,130.95610558]
[1746717209789,19.86,158.04,158.0,26.0]
[1746717209992,19.86,158.04,158.0,108.8]
[1746717210299,237.06,158.09,158.0,108.8]
[1746717210505,256.92,158.09,158.0,108.8]
[1746717211009,256.92,158.09,158.04,26.0]
[1746717211203,256.92,158.09,158.05,22.14489085]
[1746717211407,19.86,158.09,158.05,22.14489085]
[1746717214017,19.86,158.09,158.08,26.0]
[1746717214410,19.86,158.14,158.08,26.0]
[1746717215791,19.86,158.14,158.09,22.13928774]
[1746717217006,19.86,158.14,158.09,136.56684166]
[1746717217406,19.86,158.14,158.12,26.0]
[1746717217822,19.86,158.14,158.13,6.3239107]
[1746717218907,8.15723315,158.18,158.13,22.13368746]
[1746717219106,8.15723315,158.18,158.13,104.93368746]
[1746717220200,8.15723315,158.18,158.13,89.1239107]
[1746717220420,32.7023434,158.18,158.13,6.3239107]
[1746717221420,24.54511025,158.17,158.13,6.3239107]
[1746717221627,32.7023434,158.18,158.13,6.3239107]
[1746717222003,8.15723315,158.18,158.12,6.32431065]
[1746717222534,8.15723315,158.18,158.12,22.13508727]
[1746717224029,8.15723315,158.18,158.12,6.32431065]
[1746717224527,39.02460315,158.18,158.12,6.32431065]
[1746717225628,14.4794929,158.18,158.12,6.32431065]
[1746717225837,39.02460315,158.18,158.12,6.32431065]
[1746717226904,30.86747888,158.17,158.12,6.32431065]
[1746717227107,39.02437666,158.18,158.12,6.32431065]
[1746717227521,14.47926641,158.18,158.12,6.32431065]
[1746717227851,14.47926641,158.18,158.11,32.32458387]
[1746717227852,24.54511025,158.17,158.11,32.32458387]
[1746717228003,39.02437666,158.18,158.11,32.32458387]
[1746717228209,8.15723315,158.18,158.11,32.32458387]
[1746717228410,39.02450273,158.18,158.11,32.32458387]
[1746717229032,14.47939248,158.18,158.11,32.32458387]
[1746717229336,39.02450273,158.18,158.11,32.32458387]
[1746717230342,8.15723315,158.18,158.11,48.13636048]
[1746717231523,6.5956,158.22,158.11,130.93636048]
[1746717231836,21.3449,158.24,158.15,26.0]
[1746717232150,19.8,158.24,158.15,108.8]
[1746717232345,19.8,158.24,158.19,26.0]
[1746717232634,256.8,158.29,158.23,26.0]
[1746717232812,19.8,158.29,158.23,108.8]
[1746717233532,19.8,158.29,158.23,82.8]
[1746717233717,19.8,158.29,158.21,108.8]
[1746717234345,19.8,158.29,158.25,26.0]
[1746717234519,19.8,158.29,158.25,108.8]
[1746717234836,8.14866471,158.33,158.25,26.0]
[1746717236416,8.14866471,158.33,158.26,6.31871603]
[1746717237553,8.14866471,158.33,158.3,26.0]
[1746717237715,22.46,158.37,158.3,26.0]
[1746717238213,22.46,158.37,158.31,18.79181043]
[1746717238408,22.46,158.37,158.32,6.31632137]
[1746717239938,0.8680803,158.42,158.33,26.0]
[1746717240326,7.18055182,158.42,158.33,26.0]
[1746717240526,7.18055182,158.42,158.34,6.31552355]
[1746717241450,31.72566207,158.42,158.34,26.0]
[1746717241741,0.8680803,158.42,158.34,26.0]
[1746717242428,0.8680803,158.42,158.35,6.31512472]
[1746717243337,7.18050445,158.42,158.35,6.31512472]
[1746717243735,0.8680803,158.42,158.38,26.0]
[1746717244141,9.06742619,158.48,158.43,0.14216157]
[1746717244455,9.06742619,158.48,158.47,6.31034265]
[1746717244944,9.06742619,158.48,158.44,218.7]
[1746717245130,9.06742619,158.48,158.42,26.0]
[1746717245649,9.06742619,158.48,158.46,26.0]
[1746717246228,9.06742619,158.48,158.44,26.0]
[1746717246553,9.06742619,158.48,158.46,6.31074088]
[1746717247454,9.06742619,158.48,158.47,0.14216157]
[1746717247642,30.57600379,158.57,158.47,218.84216157]
[1746717247822,8.13600379,158.57,158.5,26.0]
[1746717248028,8.13600379,158.57,158.5,30.95566649]
[1746717248227,8.13600379,158.57,158.51,0.14216157]
[1746717248552,8.13600379,158.57,158.52,6.30835225]
[1746717249153,14.44242609,158.57,158.48,41.77424598]
[1746717249357,38.98753634,158.57,158.48,41.77424598]
[1746717249543,14.44242609,158.57,158.48,41.77424598]
[1746717249946,24.54511025,158.56,158.46,6.31074088]
[1746717250140,24.54511025,158.53,158.45,6.31101747]
[1746717250338,24.54511025,158.54,158.45,6.31101747]
[1746717250554,6.30715862,158.55,158.45,6.31101747]
[1746717250861,24.54511025,158.54,158.45,6.31101747]
[1746717251349,6.3229,158.54,158.4,24.84264886]
[1746717251539,24.54511025,158.51,158.4,7.7433]
[1746717251745,30.86801025,158.54,158.41,22.09456473]
[1746717251945,6.3229,158.54,158.43,0.14216157]
[1746717252143,6.3229,158.54,158.45,26.0]
[1746717252327,54.90588401,158.56,158.46,0.14216157]
[1746717252328,22.42,158.56,158.46,0.14216157]
[1746717252525,22.42,158.56,158.47,22.08619927]
[1746717252947,28.72685992,158.56,158.47,22.08619927]
[1746717253147,24.54511025,158.55,158.47,6.31034265]
[1746717253328,28.72685992,158.56,158.45,6.31113916]
[1746717253329,24.54511025,158.53,158.45,6.31113916]
[1746717253527,24.54511025,158.52,158.45,6.31113916]
[1746717253744,24.54511025,158.51,158.43,6.31193587]
[1746717253953,24.54511025,158.5,158.43,6.31193587]
[1746717254151,24.54511025,158.51,158.43,6.31193587]
[1746717254354,18.79181043,158.55,158.43,22.09177554]
[1746717254668,53.27197017,158.56,158.43,240.79177554]
[1746717254834,22.42,158.56,158.46,26.0]
[1746717255039,22.42,158.56,158.47,26.0]
[1746717255235,24.54511025,158.55,158.47,26.0]
[1746717255558,24.54511025,158.55,158.44,244.7]
[1746717256551,28.7267682,158.56,158.45,22.08898706]
[1746717256756,46.96511025,158.56,158.45,22.08898706]
[1746717256950,24.54511025,158.55,158.45,22.08898706]
[1746717257152,46.96511025,158.56,158.45,22.08898706]
[1746717257855,24.54511025,158.55,158.45,22.08898706]
[1746717258038,24.54511025,158.54,158.45,22.08898706]
[1746717258438,24.54511025,158.53,158.45,6.31113916]
[1746717258737,24.54511025,158.53,158.42,15.92215622]
[1746717258738,24.54511025,158.5,158.43,6.31193587]
[1746717258935,1.505,158.52,158.43,6.31193587]
[1746717259136,26.05011025,158.52,158.43,6.31193587]
[1746717259468,24.54511025,158.51,158.43,6.31193587]
[1746717259653,30.85405669,158.51,158.42,15.77999465]
[1746717259964,7.81343859,158.52,158.42,15.77999465]
[1746717260261,32.35854884,158.52,158.42,82.8]
[1746717260462,7.81343859,158.52,158.41,115.11273278]
[1746717260643,32.35854884,158.52,158.41,115.11273278]
[1746717260962,24.54511025,158.51,158.41,115.11273278]
[1746717261347,30.70101025,158.5,158.41,115.11273278]
[1746717261743,6.30954634,158.49,158.41,115.11273278]
[1746717262467,6.30954634,158.49,158.41,32.31273278]
[1746717263043,46.62852244,158.49,158.41,26.0]
[1746717263449,69.04852244,158.49,158.41,26.0]
[1746717263649,24.54511025,158.48,158.41,26.0]
[1746717263861,24.54511025,158.48,158.37,141.12318053]
[1746717263862,24.54511025,158.48,158.37,218.7]
[1746717264056,24.54511025,158.48,158.38,26.0]
[1746717264257,44.50341219,158.49,158.38,32.31359602]
[1746717265168,69.04852244,158.49,158.38,32.31359602]
[1746717265371,24.54511025,158.47,158.38,32.31359602]
[1746717265574,24.54511025,158.46,158.38,89.11359602]
[1746717265945,24.54511025,158.45,158.36,90.6407825]
[1746717266144,18.79181043,158.48,158.36,90.6407825]
[1746717266145,24.54511025,158.43,158.36,82.8]
[1746717266560,26.20761025,158.44,158.36,82.8]
[1746717266848,1.6625,158.44,158.36,89.11470229]
[1746717267074,26.20761025,158.44,158.36,89.11470229]
[1746717267259,46.33161043,158.48,158.36,89.11470229]
[1746717267460,24.54511025,158.46,158.36,54.5133077]
[1746717268478,22.08619927,158.47,158.36,54.5133077]
[1746717268649,24.54511025,158.43,158.36,48.19860541]
[1746717268851,24.54511025,158.43,158.36,54.51324308]
[1746717269067,24.54511025,158.43,158.36,48.19860541]
[1746717269662,28.45418706,158.45,158.34,48.19860541]
[1746717269663,24.54511025,158.41,158.34,48.19860541]
[1746717269857,24.54511025,158.41,158.29,184.09860541]
[1746717270181,46.54511025,158.42,158.31,26.0]
[1746717270363,22.0,158.42,158.31,29.14803229]
[1746717270778,22.0,158.42,158.33,26.0]
[1746717270979,22.0,158.42,158.33,74.19860541]
[1746717271182,6.31273278,158.41,158.34,6.31552355]
[1746717274380,6.31273278,158.41,158.34,54.51412896]
[1746717276987,6.31273278,158.41,158.34,48.19860541]
[1746717277491,6.31273278,158.41,158.34,54.51409856]
[1746717277889,6.31273278,158.41,158.34,48.19860541]
[1746717279094,6.31273278,158.41,158.34,54.51387601]
[1746717279394,6.31273278,158.41,158.34,48.19860541]
[1746717279592,30.85784303,158.41,158.34,48.19860541]
[1746717279901,46.63967498,158.41,158.34,48.19860541]
[1746717280090,24.54511025,158.4,158.34,48.19860541]
[1746717280293,22.09456473,158.41,158.34,48.19860541]
[1746717280598,22.09456473,158.41,158.34,54.51411447]
[1746717280599,6.31273278,158.41,158.34,54.51411447]
[1746717281173,6.31273278,158.41,158.34,48.19860541]
[1746717281404,30.85784303,158.41,158.34,48.19860541]
[1746717282597,6.31273278,158.41,158.34,54.5140717]
[1746717283207,30.85784303,158.41,158.34,48.19860541]
[1746717283686,46.63967498,158.41,158.34,48.19860541]
[1746717283891,22.09456473,158.41,158.34,48.19860541]
[1746717284598,46.63967498,158.41,158.34,48.19860541]
[1746717285368,22.09456473,158.41,158.34,54.51406429]
[1746717285572,46.63967498,158.41,158.34,48.19860541]
[1746717286391,6.31273278,158.41,158.34,54.51400741]
[1746717286982,22.0,158.42,158.34,70.3028163]
[1746717287405,22.0,158.42,158.35,7.7628]
[1746717287991,22.0,158.42,158.36,26.0]
[1746717288182,21.28,158.48,158.4,26.0]
[1746717288388,21.28,158.48,158.4,210.09860541]
[1746717288594,236.48,158.5,158.42,1.5048]
[1746717288780,21.28,158.53,158.42,1.5048]
[1746717288781,27.58810601,158.53,158.44,26.0]
[1746717288979,21.28,158.53,158.45,6.31113916]
[1746717289300,21.28,158.53,158.46,26.0]
[1746717290320,27.58800473,158.53,158.46,26.0]
[1746717290481,52.13311498,158.53,158.45,6.31113916]
[1746717291116,27.58800473,158.53,158.44,6.31153749]
[1746717291418,24.54511025,158.52,158.44,6.31153749]
[1746717291599,27.58800473,158.53,158.44,6.31153749]
[1746717291788,24.54511025,158.51,158.44,6.31153749]
[1746717291986,24.54511025,158.52,158.44,6.31153749]
[1746717292700,43.35789055,158.53,158.44,6.31153749]
[1746717293286,6.30875023,158.51,158.44,6.31153749]
[1746717294513,30.8534625,158.52,158.44,6.31153749]
[1746717295000,6.30835225,158.52,158.44,6.31153749]
[1746717296397,27.58808069,158.53,158.44,22.09038121]
[1746717296603,52.13319094,158.53,158.44,22.09038121]
[1746717296982,52.13319094,158.53,158.44,6.31153749]
[1746717297177,27.58808069,158.53,158.44,6.31153749]
[1746717297801,52.13319094,158.53,158.44,6.31153749]
[1746717298511,30.85385447,158.52,158.44,6.31153749]
[1746717299508,6.30874422,158.52,158.44,6.31153749]
[1746717299702,30.85385447,158.52,158.44,6.31153749]
[1746717299908,30.85417645,158.51,158.44,6.31153749]
[1746717300280,24.54511025,158.48,158.39,190.59590541]
[1746717300496,24.54511025,158.46,158.39,6.31352989]
[1746717301189,18.79181043,158.5,158.39,6.31352989]
[1746717301687,24.54511025,158.47,158.39,6.31352989]
[1746717302004,30.85585113,158.46,158.39,6.31352989]
[1746717302378,24.54511025,158.45,158.36,6.31472594]
[1746717302585,24.54511025,158.43,158.36,6.31472594]
[1746717302989,24.54511025,158.42,158.35,7.86688562]
[1746717303186,24.54511025,158.41,158.35,6.31498562]
[1746717303804,7.9638,158.43,158.35,6.31498562]
[1746717303984,6.31313131,158.4,158.34,6.31552355]
[1746717304187,24.54511025,158.39,158.34,6.31552355]
[1746717304384,24.54511025,158.39,158.32,6.31632137]
[1746717304998,30.8579845,158.41,158.32,22.1071248]
[1746717305202,6.31287425,158.41,158.32,22.1071248]
[1746717305902,30.8579845,158.41,158.32,22.1071248]
[1746717306104,30.8579845,158.41,158.32,6.31632137]
[1746717306304,24.54511025,158.4,158.32,54.51492678]
[1746717306712,24.54511025,158.38,158.32,48.19860541]
[1746717307100,24.54511025,158.39,158.32,48.19860541]
[1746717307994,6.31287425,158.41,158.32,48.19860541]
[1746717308192,24.54511025,158.41,158.33,6.31592244]
[1746717308497,24.54511025,158.39,158.33,6.31592244]
[1746717309608,6.31352989,158.39,158.33,6.31592244]
[1746717309913,30.85864014,158.39,158.32,54.51479295]
[1746717310208,24.54511025,158.37,158.32,48.19860541]
[1746717310804,24.54511025,158.35,158.32,48.19860541]
[1746717311010,42.61735462,158.39,158.32,48.19860541]
[1746717311211,24.54511025,158.35,158.32,48.19860541]
[1746717311393,24.54511025,158.36,158.32,48.19860541]
[1746717311801,24.54511025,158.34,158.28,48.19860541]
[1746717311999,6.31512472,158.35,158.28,54.51638938]
[1746717312314,6.31512472,158.35,158.28,48.19860541]
[1746717312502,24.54511025,158.34,158.28,48.19860541]
[1746717313512,24.54511025,158.34,158.28,54.5164214]
[1746717313710,30.86072764,158.34,158.28,54.5164214]
[1746717314012,24.54511025,158.35,158.28,54.5164214]
[1746717315407,20.52,158.39,158.28,96.31121543]
[1746717315623,20.52,158.39,158.31,26.0]
[1746717315826,20.52,158.39,158.32,6.31632137]
[1746717316126,20.52,158.39,158.32,70.30573021]
[1746717317397,7.9638,158.43,158.33,1.6614]
[1746717317617,7.9638,158.43,158.33,185.76000541]
[1746717317791,6.4396,158.43,158.34,22.10433244]
[1746717318006,20.54,158.44,158.37,26.0]
[1746717318190,20.54,158.44,158.37,74.19860541]
[1746717319097,24.54511025,158.43,158.37,48.19860541]
[1746717319297,26.85161842,158.44,158.37,48.19860541]
[1746717319499,24.54511025,158.43,158.37,48.19860541]
[1746717319912,26.85161842,158.44,158.37,54.51284967]
[1746717320098,24.54511025,158.43,158.37,54.51284967]
[1746717320613,20.54,158.44,158.37,70.29866769]
[1746717320920,20.52,158.49,158.4,26.0]
[1746717321088,20.52,158.49,158.41,1.6226]
[1746717321289,20.52,158.49,158.41,49.82120541]
[1746717321703,24.54511025,158.47,158.41,49.82120541]
[1746717321993,20.52,158.49,158.41,49.82120541]
[1746717321994,24.54511025,158.46,158.42,6.3123343]
[1746717322194,24.54511025,158.47,158.42,6.3123343]
[1746717322389,24.54511025,158.46,158.41,54.51119628]
[1746717322630,24.54511025,158.46,158.41,48.19860541]
[1746717322797,24.54511025,158.47,158.41,54.51118418]
[1746717323336,26.82968885,158.49,158.41,54.51118418]
[1746717323698,24.54511025,158.47,158.41,54.51118418]
[1746717323927,45.06511025,158.49,158.41,70.29301613]
[1746717324306,20.52,158.49,158.41,70.29301613]
[1746717324908,45.06511025,158.49,158.41,70.29301613]
[1746717325431,26.82960409,158.49,158.41,70.29301613]
[1746717325627,24.54511025,158.48,158.41,54.51118418]
[1746717326329,51.37471434,158.49,158.41,54.51118418]
[1746717326703,51.37472112,158.49,158.41,54.51118418]
[1746717326892,45.06511025,158.49,158.41,70.29301613]
[1746717328322,20.52,158.49,158.41,206.19301613]
[1746717330024,20.52,158.55,158.45,44.64964886]
[1746717330203,20.52,158.55,158.45,228.74825427]
[1746717330904,8.13600379,158.57,158.46,0.14216157]
[1746717332112,8.13600379,158.57,158.51,26.0]
[1746717332309,8.13600379,158.57,158.51,74.19860541]
[1746717333003,8.13600379,158.57,158.51,48.19860541]
[1746717334222,8.13600379,158.57,158.52,6.30835225]
[1746717334605,14.44249035,158.57,158.52,6.30835225]
[1746717335229,14.44249035,158.57,158.51,54.50726308]
[1746717335529,38.9876006,158.57,158.51,48.19860541]
[1746717335707,14.44249035,158.57,158.51,54.50729402]
[1746717336209,38.9876006,158.57,158.51,54.50729402]
[1746717336402,24.54511025,158.56,158.51,48.19860541]
[1746717336601,24.54511025,158.55,158.51,48.19860541]
[1746717336808,24.54511025,158.54,158.48,54.50839744]
[1746717337925,6.30795433,158.53,158.48,54.50839744]
[1746717338125,30.85281189,158.54,158.48,6.30979203]
[1746717338309,50.81281189,158.54,158.48,6.30979203]
[1746717338514,26.26770164,158.54,158.45,22.08898706]
[1746717339022,50.81281189,158.54,158.45,22.08898706]
[1746717339408,19.96,158.54,158.45,22.08898706]
[1746717339808,19.96,158.54,158.45,25.26147341]
[1746717340920,19.96,158.54,158.46,26.0]
[1746717341430,19.96,158.54,158.48,26.0]
[1746717341933,19.96,158.54,158.48,74.19860541]
[1746717342126,19.96,158.54,158.49,6.30954634]
[1746717344746,44.50511025,158.54,158.48,54.50848528]
[1746717345051,24.54511025,158.51,158.48,48.19860541]
[1746717346512,30.85409645,158.51,158.48,48.19860541]
[1746717347128,24.54511025,158.49,158.43,48.19860541]
[1746717347525,24.54511025,158.5,158.43,48.19860541]
[1746717347938,24.54511025,158.48,158.43,48.19860541]
[1746717348240,22.08086179,158.51,158.43,48.19860541]
[1746717348428,24.54511025,158.49,158.43,54.51047265]
[1746717349349,30.85498489,158.49,158.43,54.51047265]
[1746717349839,6.30987464,158.49,158.43,54.51047265]
[1746717350009,8.1925,158.53,158.43,54.51047265]
[1746717350215,24.54511025,158.49,158.43,54.51047265]
[1746717350740,24.54511025,158.5,158.43,54.51047265]
[1746717351240,6.30954634,158.49,158.43,54.51047265]
[1746717351449,24.54511025,158.48,158.43,48.19860541]
[1746717351844,24.54511025,158.47,158.43,48.19860541]
[1746717352032,24.54511025,158.47,158.41,54.51120429]
[1746717352347,24.54511025,158.48,158.41,54.51120429]
[1746717352642,6.30954634,158.49,158.41,54.51120429]
[1746717352643,30.85465659,158.49,158.41,54.51120429]
[1746717352843,6.30926853,158.5,158.41,70.29303624]
[1746717353052,24.54511025,158.49,158.41,70.29303624]
[1746717353542,30.85472801,158.49,158.41,70.29303624]
[1746717353745,24.54511025,158.49,158.41,70.29303624]
[1746717353942,6.30927645,158.5,158.41,70.29303624]
[1746717354246,30.8543867,158.5,158.41,70.29303624]
[1746717355638,24.54511025,158.5,158.41,70.29303624]
[1746717356353,6.45051382,158.52,158.41,70.29303624]
[1746717356354,24.54511025,158.49,158.41,70.29303624]
[1746717356854,22.22139446,158.52,158.41,70.29303624]
[1746717357045,24.54511025,158.49,158.41,70.29303624]
[1746717357245,6.30994447,158.48,158.41,70.29303624]
[1746717357442,30.85505472,158.48,158.41,70.29303624]
[1746717357754,24.54511025,158.47,158.41,54.51120429]
[1746717358645,30.85549988,158.47,158.41,54.51120429]
[1746717358839,24.54511025,158.46,158.41,54.51120429]
[1746717359041,24.54511025,158.43,158.39,48.19860541]
[1746717359230,24.54511025,158.43,158.38,6.31363616]
[1746717359855,42.04624625,158.47,158.35,48.19860541]
[1746717359856,24.54511025,158.39,158.35,48.19860541]
[1746717360153,24.54511025,158.39,158.33,6.31592244]
[1746717360736,30.85888221,158.39,158.33,6.31592244]
[1746717361255,24.54511025,158.39,158.33,6.31592244]
[1746717361453,12.75002607,158.39,158.3,6.31708396]
[1746717361641,24.54511025,158.35,158.3,6.31708396]
[1746717362042,24.54511025,158.34,158.28,6.31791761]
[1746717362350,24.54511025,158.33,158.28,6.31791761]
[1746717362538,24.54511025,158.34,158.28,6.31791761]
[1746717363139,30.86043546,158.35,158.28,6.31791761]
[1746717364057,24.54511025,158.34,158.28,6.31791761]
[1746717364256,22.10014522,158.37,158.28,6.31791761]
[1746717364447,24.54511025,158.35,158.28,6.31791761]
[1746717365751,30.86038238,158.35,158.28,6.31791761]
[1746717366429,24.54511025,158.35,158.28,6.31791761]
[1746717366630,24.54511025,158.34,158.28,6.31791761]
[1746717367040,30.86054265,158.35,158.28,6.31791761]
[1746717367355,24.54511025,158.34,158.28,54.51652302]
[1746717367563,24.54511025,158.33,158.28,48.19860541]
[1746717367764,24.54511025,158.33,158.22,6.2565]
[1746717367765,24.54511025,158.29,158.21,9.75619145]
[1746717368071,24.54511025,158.28,158.21,27.5082]
[1746717368562,24.54511025,158.29,158.21,27.5082]
[1746717368767,24.54511025,158.3,158.22,22.12109719]
[1746717369666,6.3946,158.32,158.22,22.12109719]
[1746717369865,19.94,158.33,158.22,22.12109719]
[1746717370128,19.94,158.33,158.25,26.0]
[1746717370359,19.94,158.33,158.27,26.0]
[1746717370666,19.94,158.33,158.3,26.0]
[1746717370845,19.94,158.33,158.31,6.31672035]
[1746717371030,19.94,158.38,158.31,6.31672035]
[1746717371229,19.94,158.38,158.31,22.10852124]
[1746717374180,19.94,158.38,158.31,53.69212303]
[1746717374781,19.94,158.38,158.31,22.10852124]
[1746717375381,44.48511025,158.38,158.31,22.10852124]
[1746717375969,24.54511025,158.36,158.31,6.31672035]
[1746717376172,24.54511025,158.35,158.31,6.31672035]
[1746717376358,24.54511025,158.35,158.29,6.31751847]
[1746717376558,24.54511025,158.33,158.28,89.11791346]
[1746717376786,24.54511025,158.32,158.28,89.11791346]
[1746717376973,24.54511025,158.32,158.28,6.31791346]
[1746717377161,24.54511025,158.31,158.24,84.4212]
[1746717377365,24.54511025,158.31,158.25,6.31911532]
[1746717377563,24.54511025,158.32,158.25,6.31911532]
[1746717377963,24.54511025,158.31,158.25,6.31911532]
[1746717378987,24.54511025,158.3,158.25,6.31911532]
[1746717379588,44.48511025,158.31,158.25,6.31911532]
[1746717379902,24.54511025,158.29,158.21,98.60146691]
[1746717380062,19.94,158.31,158.22,22.12109719]
[1746717380395,19.94,158.31,158.22,240.82109719]
[1746717381469,19.94,158.31,158.22,272.42266462]
[1746717381691,19.94,158.31,158.23,18.64964886]
[1746717382102,19.94,158.31,158.25,32.0911]
[1746717382262,19.94,158.31,158.25,250.7911]
[1746717382464,19.94,158.37,158.26,1.6027]
[1746717382780,50.79947995,158.37,158.27,22.1141088]
[1746717383179,19.94,158.37,158.28,26.0]
[1746717383971,19.94,158.37,158.3,26.0]
[1746717384170,19.94,158.37,158.3,108.8]
[1746717384675,19.94,158.37,158.31,6.31672035]
[1746717385121,19.94,158.37,158.31,22.10852124]
[1746717385474,19.94,158.37,158.31,104.90852124]
[1746717385673,8.14349181,158.4,158.32,18.64964886]
[1746717385971,8.14349181,158.4,158.33,26.0]
[1746717386167,8.14349181,158.4,158.34,26.0]
[1746717386484,24.54511025,158.39,158.32,26.0]
[1746717386799,24.54511025,158.39,158.31,89.11672035]
[1746717386800,24.54511025,158.37,158.31,89.11672035]
[1746717387169,24.54511025,158.38,158.31,89.11672035]
[1746717387369,30.85864014,158.39,158.31,89.11672035]
[1746717387603,32.68860206,158.4,158.31,104.90852124]
[1746717387894,24.54511025,158.39,158.31,130.90852124]
[1746717388091,14.45668672,158.4,158.31,115.11672035]
[1746717388092,24.54511025,158.38,158.31,115.11672035]
[1746717388468,24.54511025,158.37,158.29,6.31751847]
[1746717388796,30.85967825,158.37,158.29,6.31751847]
[1746717389206,24.54511025,158.36,158.29,6.31751847]
[1746717390281,30.85991598,158.36,158.29,6.31751847]
[1746717390810,24.54511025,158.35,158.29,89.11751847]
[1746717390979,24.54511025,158.36,158.29,89.11751847]
[1746717392413,24.54511025,158.35,158.29,89.11751847]
[1746717392787,44.48511025,158.35,158.29,89.11751847]
[1746717392985,24.54511025,158.34,158.29,89.11751847]
[1746717393206,44.48511025,158.35,158.29,89.11751847]
[1746717394387,44.48511025,158.35,158.29,6.31751847]
[1746717395903,19.94,158.35,158.28,6.31791761]
[1746717396117,19.94,158.35,158.28,22.11271164]
[1746717396697,44.48511025,158.35,158.28,22.11271164]
[1746717396913,19.94,158.35,158.28,22.11271164]
[1746717398417,19.94,158.35,158.28,55.26349971]
[1746717399615,19.94,158.35,158.28,23.67391164]
[1746717400296,44.48511025,158.35,158.28,22.11271164]
[1746717400518,44.48511025,158.35,158.28,104.91271164]
[1746717402732,19.94,158.35,158.28,104.91271164]
[1746717403626,44.48511025,158.35,158.28,104.91271164]
[1746717405612,50.80026559,158.35,158.28,104.91271164]
[1746717405830,44.48511025,158.35,158.28,104.91271164]
[1746717407516,19.94,158.35,158.28,104.91271164]
[1746717409413,19.94,158.35,158.28,240.81271164]
[1746717409927,19.94,158.35,158.29,18.79181043]